[Event "EYCC Girls-U12 2019"]
[Site "Bratislava"]
[Date "2019.08.05"]
[Round "4.14"]
[White "Nordquelle, Amelia"]
[Black "Dubovik, Maria"]
[Result "1-0"]
[ECO "D37"]
[WhiteElo "1648"]
[BlackElo "1504"]
[Annotator "NA"]
[PlyCount "133"]
[EventDate "2019.08.02"]
[EventType "swiss"]
[EventCountry "SVK"]
[SourceTitle "playchess.com"]
[Source "ChessBase"]
[SourceQuality "1"]
[TimeControl "40/5400+30:1800+30"]

1. d4 {[%emt 0:00:00]} d5 {[%emt 0:00:00]} 2. c4 {[%emt 0:00:42]} e6 {[%emt 0:00:58]} 3. Nc3 {[%emt 0:00:55]} Nf6 {[%emt 0:01:20]} 4. Nf3 {[%emt 0:00:48]} a6 {[%emt 0:00:50]} 5. Bg5 {[%emt 0:04:57]} c6 {[%emt 0:01:00]} 6. e3 {[%emt 0:01:15]} Bb4 {[%emt 0:01:42]} 7. Bd3 {[%emt 0:01:29]} Qa5 {[%emt 0:02:39]} 8. Qc2 {[%emt 0:05:06]} dxc4 {[%emt 0:01:29]} 9. Bxc4 {[%emt 0:00:44]} Ne4 {[%emt 0:01:38]} 10. Qxe4 {[%emt 0:02:41]} Bxc3+ {[%emt 0:03:02]} 11. Ke2 {[%emt 0:00:29]} Bxb2 {[%emt 0:01:18]} 12. Rab1 {[%emt 0:02:15]} Bc3 {[%emt 0:01:29]} 13. Rhd1 {[%emt 0:14:47]} b5 {[%emt 0:03:34]} 14. Bb3 {[%emt 0:00:54]} O-O {[%emt 0:01:13]} 15. Bc2 {[%emt 0:01:54]} f5 {[%emt 0:01:55]} 16. Qd3 {[%emt 0:03:06]} Nd7 {[%emt 0:03:56]} 17. Bb3 {[%emt 0:11:16]} Nf6 {[%emt 0:28:32]} 18. Qxf5 {[%emt 0:02:34]} Nd5 {[%emt 0:02:29]} 19. Qc2 {[%emt 0:07:48]} b4 {[%emt 0:01:44]} 20. Ne5 {[%emt 0:04:39]} Qc7 {[%emt 0:03:53]} 21. Qe4 {[%emt 0:04:36]} a5 {[%emt 0:02:50]} 22. Kf1 {[%emt 0:02:42]} Rf5 {[%emt 0:08:37]} 23. Bc2 {[%emt 0:02:12]} g6 {[%emt 0:02:59]} 24. Qh4 {[%emt 0:05:28]} Rxe5 {[%emt 0:02:19]} 25. dxe5 {[%emt 0:05:03]} Bxe5 {[%emt 0:00:09]} 26. Kg1 {[%emt 0:00:38]} Ba6 {[%emt 0:01:46]} 27. Rbc1 {[%emt 0:01:08]} Nc3 {[%emt 0:00:32]} 28. Rd8+ {[%emt 0:00:44]} Rxd8 {[%emt 0:00:04]} 29. Bxd8 {[%emt 0:00:10]} Bxh2+ {[%emt 0:01:32]} 30. Kh1 {[%emt 0:02:23]} Qd6 {[%emt 0:00:44]} 31. Bxa5 {[%emt 0:02:57]} Be5 {[%emt 0:05:09]} 32. Bb3 {[%emt 0:03:43]} c5 {[%emt 0:05:17]} 33. Bd8 {[%emt 0:02:13]} c4 {[%emt 0:00:30]} 34. Bxc4 {[%emt 0:00:42]} Bxc4 {[%emt 0:00:11]} 35. Qxc4 {[%emt 0:00:16]} Kf7 {[%emt 0:01:11]} 36. Ba5 {[%emt 0:00:47]} Qd2 {[%emt 0:00:38]} 37. Ra1 {[%emt 0:00:52]} Ne4 {[%emt 0:00:33]} 38. Qxe4 {[%emt 0:02:12]} Bxa1 {[%emt 0:00:09]} 39. Qb7+ {[%emt 0:01:00]} Kf6 {[%emt 0:00:26]} 40. Qxb4 {[%emt 0:00:00]} Qd1+ {[%emt 0:00:00]} 41. Qe1 {[%emt 0:06:02]} Qh5+ {[%emt 0:02:22]} 42. Kg1 {[%emt 0:06:34]} Be5 {[%emt 0:00:26]} 43. f4 {[%emt 0:04:16]} Bb2 {[%emt 0:01:24]} 44. Qd2 {[%emt 0:04:29]} Ba1 {[%emt 0:06:20]} 45. Bd8+ {[%emt 0:07:29]} Kg7 {[%emt 0:02:46]} 46. Qd7+ {[%emt 0:00:54]} Kg8 {[%emt 0:02:12]} 47. Qxe6+ {[%emt 0:01:01]} Kg7 {[%emt 0:00:11]} 48. Qd7+ {[%emt 0:00:29]} Kg8 {[%emt 0:00:16]} 49. Be7 {[%emt 0:01:01]} Qf5 {[%emt 0:00:50]} 50. Qxf5 {[%emt 0:00:37]} gxf5 {[%emt 0:00:02]} 51. Kf2 {[%emt 0:00:40]} Kf7 {[%emt 0:00:09]} 52. Bc5 {[%emt 0:00:30]} Bc3 {[%emt 0:00:09]} 53. Kf3 {[%emt 0:00:43]} Ba5 {[%emt 0:00:08]} 54. g4 {[%emt 0:01:48]} fxg4+ {[%emt 0:00:18]} 55. Kxg4 {[%emt 0:00:13]} Kf6 {[%emt 0:00:23]} 56. Kh5 {[%emt 0:00:51]} Kf5 {[%emt 0:00:27]} 57. Kh6 {[%emt 0:00:18]} Kf6 {[%emt 0:00:03]} 58. Kxh7 {[%emt 0:00:20]} Kf7 {[%emt 0:00:04]} 59. e4 {[%emt 0:01:08]} Bd2 {[%emt 0:00:05]} 60. Bd6 {[%emt 0:00:36]} Ke6 {[%emt 0:00:07]} 61. Be5 {[%emt 0:00:27]} Ba5 {[%emt 0:00:27]} 62. Kg6 {[%emt 0:00:18]} Bd8 {[%emt 0:00:10]} 63. Bc3 {[%emt 0:00:45]} Bb6 {[%emt 0:00:17]} 64. f5+ {[%emt 0:00:41]} Ke7 {[%emt 0:00:07]} 65. f6+ {[%emt 0:00:17]} Kf8 {[%emt 0:00:07]} 66. Bb4+ {[%emt 0:00:06]} Ke8 {[%emt 0:00:12]} 67. f7+ {[%emt 0:00:09]} 1-0

[Event "EYCC Girls-U12 2019"]
[Site "Bratislava"]
[Date "2019.08.05"]
[Round "4.15"]
[White "Darmaeva, Nomina"]
[Black "Gasimova, Samra"]
[Result "0-1"]
[ECO "C00"]
[WhiteElo "1408"]
[BlackElo "1695"]
[Annotator "NA"]
[PlyCount "60"]
[EventDate "2019.08.02"]
[EventType "swiss"]
[EventCountry "SVK"]
[SourceTitle "playchess.com"]
[Source "ChessBase"]
[SourceQuality "1"]
[TimeControl "40/5400+30:1800+30"]

1. e4 {[%emt 0:00:00]} e6 {[%emt 0:00:00]} 2. d4 {[%emt 0:00:00]} d5 {[%emt 0:00:00]} 3. Bd3 {[%emt 0:00:20]} Nf6 {[%emt 0:00:57]} 4. e5 {[%emt 0:00:46]} Nfd7 {[%emt 0:00:14]} 5. Nf3 {[%emt 0:00:33]} c5 {[%emt 0:00:28]} 6. c3 {[%emt 0:02:01]} Nc6 {[%emt 0:00:28]} 7. O-O {[%emt 0:01:07]} Be7 {[%emt 0:01:05]} 8. Be3 {[%emt 0:06:53]} c4 {[%emt 0:04:33]} 9. Be2 {[%emt 0:05:02]} b5 {[%emt 0:06:24]} 10. b3 {[%emt 0:03:43]} Nb6 {[%emt 0:03:21]} 11. Nfd2 {[%emt 0:05:36]} Ba6 {[%emt 0:03:10]} 12. f4 {[%emt 0:03:28]} O-O {[%emt 0:02:54]} 13. Rf3 {[%emt 0:03:10]} f6 {[%emt 0:07:50]} 14. Rh3 {[%emt 0:02:15]} fxe5 {[%emt 0:04:26]} 15. fxe5 {[%emt 0:01:12]} Bg5 {[%emt 0:03:17]} 16. Bg4 {[%emt 0:03:37]} Bxe3+ {[%emt 0:00:34]} 17. Rxe3 {[%emt 0:00:18]} Qe7 {[%emt 0:00:44]} 18. Bh3 {[%emt 0:03:56]} Bc8 {[%emt 0:03:54]} 19. Rg3 {[%emt 0:04:27]} Bd7 {[%emt 0:07:43]} 20. Nf3 {[%emt 0:08:45]} b4 {[%emt 0:02:15]} 21. Qc2 {[%emt 0:03:17]} bxc3 {[%emt 0:09:56]} 22. Ng5 {[%emt 0:17:48]} g6 {[%emt 0:00:27]} 23. Qxc3 {[%emt 0:00:35]} Rf4 {[%emt 0:02:53]} 24. bxc4 {[%emt 0:14:27]} Nxd4 {[%emt 0:02:13]} 25. Qd2 {[%emt 0:01:07]} Nxc4 {[%emt 0:00:26]} 26. Qd1 {[%emt 0:00:39]} Nc2 {[%emt 0:03:01]} 27. Qxc2 {[%emt 0:00:41]} Qc5+ {[%emt 0:00:02]} 28. Re3 {[%emt 0:00:56]} Qxe3+ {[%emt 0:00:07]} 29. Qf2 {[%emt 0:00:30]} Qxf2+ {[%emt 0:00:07]} 30. Kh1 {[%emt 0:00:11]} Qf1# {[%emt 0:00:05]} 0-1

[Event "EYCC Girls-U12 2019"]
[Site "Bratislava"]
[Date "2019.08.05"]
[Round "4.16"]
[White "Paraschiv, Petronela-Alexandra"]
[Black "Sala, Giulia"]
[Result "0-1"]
[ECO "C68"]
[WhiteElo "1810"]
[BlackElo "1623"]
[Annotator "NA"]
[PlyCount "80"]
[EventDate "2019.08.02"]
[EventType "swiss"]
[EventCountry "SVK"]
[SourceTitle "playchess.com"]
[Source "ChessBase"]
[SourceQuality "1"]
[TimeControl "40/5400+30:1800+30"]

1. e4 {[%emt 0:00:00]} e5 {[%emt 0:00:00]} 2. Nf3 {[%emt 0:00:00]} Nc6 {[%emt 0:00:00]} 3. Bb5 {[%emt 0:00:00]} a6 {[%emt 0:00:12]} 4. Bxc6 {[%emt 0:00:00]} dxc6 {[%emt 0:00:11]} 5. O-O {[%emt 0:00:42]} Bg4 {[%emt 0:00:22]} 6. h3 {[%emt 0:00:39]} h5 {[%emt 0:00:16]} 7. Re1 {[%emt 0:00:30]} Qf6 {[%emt 0:00:28]} 8. d3 {[%emt 0:02:37]} Bxf3 {[%emt 0:03:48]} 9. gxf3 {[%emt 0:05:30]} Ne7 {[%emt 0:02:11]} 10. Nc3 {[%emt 0:00:35]} Ng6 {[%emt 0:01:10]} 11. Kg2 {[%emt 0:01:35]} Be7 {[%emt 0:01:20]} 12. Rh1 {[%emt 0:01:19]} Nh4+ {[%emt 0:01:09]} 13. Kf1 Nxf3 {[%emt 0:03:07]} 14. Ne2 {[%emt 0:04:13]} Bc5 {[%emt 0:02:40]} 15. Ng3 {[%emt 0:06:30]} g6 {[%emt 0:03:55]} 16. Qe2 {[%emt 0:09:02]} h4 {[%emt 0:01:47]} 17. Nf5 {[%emt 0:00:31]} Ng5 {[%emt 0:04:53]} 18. Ne3 {[%emt 0:01:47]} Bxe3 {[%emt 0:07:27]} 19. Bxe3 {[%emt 0:00:37]} Ne6 {[%emt 0:00:29]} 20. Qg4 {[%emt 0:01:37]} O-O-O {[%emt 0:02:19]} 21. Rg1 {[%emt 0:01:32]} Kb8 {[%emt 0:00:40]} 22. Ke2 {[%emt 0:01:35]} c5 {[%emt 0:02:16]} 23. Rg2 {[%emt 0:06:10]} Nd4+ {[%emt 0:01:36]} 24. Bxd4 {[%emt 0:00:18]} cxd4 {[%emt 0:00:09]} 25. Qg5 {[%emt 0:03:01]} Qb6 {[%emt 0:01:32]} 26. Rb1 {[%emt 0:01:20]} Qc5 {[%emt 0:01:05]} 27. Kd1 {[%emt 0:01:07]} Rd6 {[%emt 0:01:14]} 28. f3 {[%emt 0:05:17]} Re6 {[%emt 0:03:19]} 29. a4 {[%emt 0:02:34]} Qa5 {[%emt 0:01:09]} 30. b3 {[%emt 0:00:08]} c5 {[%emt 0:02:12]} 31. Rg4 {[%emt 0:00:36]} Rh5 {[%emt 0:00:47]} 32. Qc1 {[%emt 0:00:11]} Rf6 {[%emt 0:02:47]} 33. Ke2 {[%emt 0:01:25]} Qc3 {[%emt 0:02:30]} 34. Rg5 {[%emt 0:00:39]} Rxg5 {[%emt 0:00:37]} 35. Qxg5 {[%emt 0:00:05]} Qxc2+ {[%emt 0:00:15]} 36. Ke1 {[%emt 0:01:03]} Qxb1+ {[%emt 0:00:12]} 37. Ke2 {[%emt 0:00:09]} Qc2+ {[%emt 0:00:20]} 38. Ke1 {[%emt 0:00:13]} Rxf3 {[%emt 0:00:39]} 39. Qxe5+ {[%emt 0:01:33]} Ka7 {[%emt 0:00:11]} 40. b4 {[%emt 0:00:00]} Re3+ {[%emt 0:00:00]} 0-1

[Event "EYCC Girls-U12 2019"]
[Site "Bratislava"]
[Date "2019.08.05"]
[Round "4.17"]
[White "Orian, Noga"]
[Black "Khegai, Darya"]
[Result "0-1"]
[ECO "A46"]
[WhiteElo "1628"]
[BlackElo "1402"]
[Annotator "NA"]
[PlyCount "94"]
[EventDate "2019.08.02"]
[EventType "swiss"]
[EventCountry "SVK"]
[SourceTitle "playchess.com"]
[Source "ChessBase"]
[SourceQuality "1"]
[TimeControl "40/5400+30:1800+30"]

1. d4 {[%emt 0:00:00]} Nf6 {[%emt 0:00:00]} 2. Nf3 {[%emt 0:00:00]} e6 {[%emt 0:00:12]} 3. Bf4 {[%emt 0:00:00]} b6 {[%emt 0:00:42]} 4. e3 {[%emt 0:00:19]} Bb7 {[%emt 0:00:10]} 5. c3 {[%emt 0:00:31]} Be7 {[%emt 0:01:16]} 6. Bd3 {[%emt 0:00:22]} d6 {[%emt 0:01:02]} 7. O-O {[%emt 0:00:50]} Nbd7 {[%emt 0:00:12]} 8. Nbd2 {[%emt 0:00:34]} O-O {[%emt 0:00:32]} 9. e4 {[%emt 0:05:34]} c5 {[%emt 0:04:17]} 10. e5 {[%emt 0:04:14]} dxe5 {[%emt 0:12:26]} 11. dxe5 {[%emt 0:02:02]} Nd5 {[%emt 0:03:07]} 12. Bg3 {[%emt 0:00:55]} Nc7 {[%emt 0:05:15]} 13. Qe2 {[%emt 0:02:54]} a6 {[%emt 0:03:12]} 14. a4 {[%emt 0:04:01]} Bc6 {[%emt 0:03:44]} 15. Rfd1 {[%emt 0:12:02]} b5 {[%emt 0:01:08]} 16. axb5 {[%emt 0:01:05]} axb5 {[%emt 0:00:09]} 17. Ne4 {[%emt 0:01:33]} c4 {[%emt 0:01:06]} 18. Bc2 {[%emt 0:00:37]} Rxa1 {[%emt 0:00:38]} 19. Rxa1 {[%emt 0:00:03]} Nd5 {[%emt 0:01:40]} 20. Nd4 {[%emt 0:05:17]} Qc7 {[%emt 0:03:12]} 21. f4 {[%emt 0:02:43]} Nc5 {[%emt 0:04:34]} 22. Kh1 {[%emt 0:02:20]} Nxe4 {[%emt 0:02:26]} 23. Qxe4 {[%emt 0:00:14]} g6 {[%emt 0:00:29]} 24. f5 {[%emt 0:13:04]} exf5 {[%emt 0:03:30]} 25. Nxf5 {[%emt 0:00:28]} Nb4 {[%emt 0:01:16]} 26. Nxe7+ {[%emt 0:06:57]} Qxe7 {[%emt 0:00:05]} 27. Qe2 {[%emt 0:00:29]} Nxc2 {[%emt 0:00:28]} 28. Qxc2 {[%emt 0:00:06]} Rd8 {[%emt 0:01:12]} 29. Rd1 {[%emt 0:04:31]} Rxd1+ {[%emt 0:00:41]} 30. Qxd1 {[%emt 0:00:17]} Qg5 {[%emt 0:01:06]} 31. Qe1 {[%emt 0:06:13]} Qf5 {[%emt 0:03:03]} 32. Qd1 {[%emt 0:06:20]} h5 {[%emt 0:01:41]} 33. Qd8+ {[%emt 0:01:24]} Kh7 {[%emt 0:00:54]} 34. Qd1 {[%emt 0:02:04]} h4 {[%emt 0:04:50]} 35. Bxh4 {[%emt 0:00:48]} Qe4 {[%emt 0:00:04]} 36. Qf1 {[%emt 0:01:03]} Qxh4 {[%emt 0:03:47]} 37. Qxf7+ {[%emt 0:00:15]} Kh6 {[%emt 0:00:01]} 38. Qf8+ {[%emt 0:00:24]} Kh5 {[%emt 0:00:06]} 39. Qh8+ {[%emt 0:00:41]} Kg4 {[%emt 0:00:48]} 40. Qc8+ {[%emt 0:00:00]} Kf4 {[%emt 0:00:00]} 41. Qf8+ {[%emt 0:03:45]} Ke3 {[%emt 0:00:50]} 42. Qc5+ {[%emt 0:02:35]} Ke2 {[%emt 0:01:53]} 43. Qg1 {[%emt 0:01:49]} Qf2 {[%emt 0:00:29]} 44. Qxf2+ {[%emt 0:00:24]} Kxf2 {[%emt 0:00:03]} 45. h4 {[%emt 0:00:35]} Bxg2+ {[%emt 0:00:06]} 46. Kh2 {[%emt 0:00:06]} Bd5 {[%emt 0:00:08]} 47. Kh3 {[%emt 0:00:24]} Be6+ {[%emt 0:00:06]} 0-1

[Event "EYCC Girls-U12 2019"]
[Site "Bratislava"]
[Date "2019.08.05"]
[Round "4.18"]
[White "Tsirekidze, Barbare"]
[Black "Janouskova, Adela"]
[Result "1-0"]
[ECO "E62"]
[WhiteElo "1527"]
[BlackElo "1193"]
[Annotator "NA"]
[PlyCount "91"]
[EventDate "2019.08.02"]
[EventType "swiss"]
[EventCountry "SVK"]
[SourceTitle "playchess.com"]
[Source "ChessBase"]
[SourceQuality "1"]
[TimeControl "40/5400+30:1800+30"]

1. d4 {[%emt 0:00:00]} Nf6 {[%emt 0:00:01]} 2. c4 {[%emt 0:00:00]} g6 {[%emt 0:00:26]} 3. Nf3 {[%emt 0:00:00]} Bg7 {[%emt 0:00:13]} 4. g3 {[%emt 0:00:13]} d6 {[%emt 0:00:17]} 5. Bg2 {[%emt 0:00:19]} O-O {[%emt 0:00:16]} 6. O-O {[%emt 0:00:19]} c6 {[%emt 0:01:09]} 7. Nc3 {[%emt 0:00:27]} Qa5 {[%emt 0:01:43]} 8. e4 {[%emt 0:07:38]} Nbd7 {[%emt 0:08:30]} 9. Qe2 {[%emt 0:13:24]} Qh5 {[%emt 0:03:10]} 10. Be3 {[%emt 0:08:42]} Nb6 {[%emt 0:00:57]} 11. Nd2 {[%emt 0:13:11]} Qxe2 {[%emt 0:02:08]} 12. Nxe2 {[%emt 0:00:08]} Be6 {[%emt 0:01:49]} 13. Rac1 {[%emt 0:05:20]} d5 {[%emt 0:05:41]} 14. cxd5 {[%emt 0:04:15]} cxd5 {[%emt 0:00:28]} 15. e5 {[%emt 0:00:15]} Nfd7 {[%emt 0:00:24]} 16. Nf4 {[%emt 0:00:34]} Rac8 {[%emt 0:03:03]} 17. Nxe6 {[%emt 0:01:00]} fxe6 {[%emt 0:00:03]} 18. Bh3 {[%emt 0:00:12]} Kf7 {[%emt 0:01:15]} 19. b3 {[%emt 0:03:48]} Rxc1 {[%emt 0:04:12]} 20. Rxc1 {[%emt 0:00:05]} Rc8 {[%emt 0:00:25]} 21. Nf3 {[%emt 0:01:02]} h6 {[%emt 0:01:12]} 22. Ne1 {[%emt 0:01:24]} Rxc1 {[%emt 0:01:14]} 23. Bxc1 {[%emt 0:00:04]} Nf8 {[%emt 0:00:38]} 24. Nd3 {[%emt 0:00:28]} g5 {[%emt 0:01:05]} 25. Nc5 {[%emt 0:00:53]} Nbd7 {[%emt 0:02:29]} 26. Nxb7 {[%emt 0:00:55]} Nb8 {[%emt 0:01:56]} 27. Nd8+ {[%emt 0:00:55]} Kg6 {[%emt 0:00:37]} 28. Nxe6 {[%emt 0:00:24]} Nc6 {[%emt 0:00:59]} 29. Bb2 {[%emt 0:02:43]} h5 {[%emt 0:01:24]} 30. Nxf8+ {[%emt 0:01:08]} Bxf8 {[%emt 0:00:03]} 31. Be6 {[%emt 0:00:11]} Nd8 {[%emt 0:02:20]} 32. Bxd5 {[%emt 0:00:10]} e6 {[%emt 0:00:15]} 33. Be4+ {[%emt 0:00:16]} Kg7 {[%emt 0:00:17]} 34. d5 {[%emt 0:00:23]} Kg8 {[%emt 0:00:38]} 35. f4 {[%emt 0:01:51]} gxf4 {[%emt 0:00:10]} 36. gxf4 {[%emt 0:00:04]} Bc5+ {[%emt 0:00:28]} 37. Kg2 {[%emt 0:00:08]} Kf7 {[%emt 0:00:31]} 38. Kf3 {[%emt 0:00:40]} exd5 {[%emt 0:00:31]} 39. Bxd5+ {[%emt 0:00:20]} Ke7 {[%emt 0:00:11]} 40. Ke4 {[%emt 0:00:00]} Ne6 {[%emt 0:00:00]} 41. Bxe6 {[%emt 0:00:25]} Kxe6 {[%emt 0:00:47]} 42. f5+ {[%emt 0:00:02]} Ke7 {[%emt 0:00:12]} 43. Kd5 {[%emt 0:00:06]} Bg1 {[%emt 0:00:10]} 44. Ba3+ {[%emt 0:00:11]} Ke8 {[%emt 0:00:11]} 45. h3 {[%emt 0:00:06]} Bb6 {[%emt 0:00:18]} 46. Ke6 {[%emt 0:00:17]} 1-0

[Event "EYCC Girls-U12 2019"]
[Site "Bratislava"]
[Date "2019.08.05"]
[Round "4.19"]
[White "Chicarosie, Ioana-Bianca"]
[Black "Badaan, Rima"]
[Result "1-0"]
[ECO "A06"]
[WhiteElo "1580"]
[BlackElo "1269"]
[Annotator "NA"]
[PlyCount "107"]
[EventDate "2019.08.02"]
[EventType "swiss"]
[EventCountry "SVK"]
[SourceTitle "playchess.com"]
[Source "ChessBase"]
[SourceQuality "1"]
[TimeControl "40/5400+30:1800+30"]

1. Nf3 {[%emt 0:00:00]} d5 {[%emt 0:00:00]} 2. d4 {[%emt 0:00:00]} e6 {[%emt 0:00:10]} 3. e3 {[%emt 0:00:10]} c6 {[%emt 0:00:16]} 4. Bd3 {[%emt 0:00:54]} f5 {[%emt 0:00:08]} 5. O-O {[%emt 0:00:50]} Bd6 {[%emt 0:00:17]} 6. c4 {[%emt 0:00:18]} b6 {[%emt 0:01:17]} 7. Qc2 {[%emt 0:02:01]} Nd7 {[%emt 0:01:42]} 8. b3 {[%emt 0:05:58]} Ngf6 {[%emt 0:00:44]} 9. cxd5 {[%emt 0:00:59]} cxd5 {[%emt 0:07:58]} 10. Ba3 {[%emt 0:01:46]} Qc7 {[%emt 0:04:07]} 11. Qxc7 {[%emt 0:08:31]} Bxc7 {[%emt 0:00:29]} 12. Rc1 {[%emt 0:00:20]} Bd8 {[%emt 0:01:56]} 13. Ng5 {[%emt 0:01:58]} Nf8 {[%emt 0:06:17]} 14. Bb5+ {[%emt 0:11:23]} Bd7 {[%emt 0:01:23]} 15. Bc6 {[%emt 0:03:04]} Rc8 {[%emt 0:11:54]} 16. Bxd7+ {[%emt 0:00:20]} Kxd7 {[%emt 0:00:31]} 17. Rxc8 {[%emt 0:00:19]} Kxc8 {[%emt 0:00:09]} 18. Bxf8 {[%emt 0:00:36]} Rxf8 {[%emt 0:01:14]} 19. Nxe6 {[%emt 0:00:19]} Rf7 {[%emt 0:00:22]} 20. Nc3 {[%emt 0:07:16]} Re7 {[%emt 0:04:52]} 21. Nxd8 {[%emt 0:02:38]} Kxd8 {[%emt 0:00:18]} 22. Rc1 {[%emt 0:00:24]} Rc7 {[%emt 0:02:22]} 23. f3 {[%emt 0:00:45]} g5 {[%emt 0:00:55]} 24. Ne2 {[%emt 0:00:39]} Rxc1+ {[%emt 0:00:21]} 25. Nxc1 {[%emt 0:00:05]} h5 {[%emt 0:00:45]} 26. Nd3 {[%emt 0:01:14]} Ke7 {[%emt 0:02:56]} 27. Ne5 {[%emt 0:01:27]} Ke6 {[%emt 0:00:52]} 28. Kf2 {[%emt 0:00:49]} Nd7 {[%emt 0:07:16]} 29. Nxd7 {[%emt 0:00:12]} Kxd7 {[%emt 0:00:06]} 30. Ke2 {[%emt 0:04:03]} Ke6 {[%emt 0:12:20]} 31. Kd3 {[%emt 0:00:10]} b5 {[%emt 0:02:18]} 32. e4 {[%emt 0:00:51]} f4 {[%emt 0:08:42]} 33. b4 {[%emt 0:07:45]} a6 {[%emt 0:02:38]} 34. Ke2 {[%emt 0:01:10]} h4 {[%emt 0:01:01]} 35. Kd3 {[%emt 0:04:13]} Kd6 {[%emt 0:05:44]} 36. exd5 {[%emt 0:00:51]} Kxd5 {[%emt 0:00:57]} 37. h3 {[%emt 0:00:15]} Kd6 {[%emt 0:03:17]} 38. Ke4 {[%emt 0:00:16]} Ke6 {[%emt 0:00:13]} 39. d5+ {[%emt 0:00:17]} Kd6 {[%emt 0:01:39]} 40. Kd4 {[%emt 0:00:00]} Kd7 {[%emt 0:00:00]} 41. Ke5 {[%emt 0:00:20]} Ke7 {[%emt 0:02:08]} 42. d6+ {[%emt 0:00:08]} Kd7 {[%emt 0:00:09]} 43. Kd5 {[%emt 0:00:05]} Kd8 {[%emt 0:01:52]} 44. Ke6 {[%emt 0:00:11]} Ke8 {[%emt 0:02:29]} 45. d7+ {[%emt 0:00:11]} Kd8 {[%emt 0:00:10]} 46. a3 {[%emt 0:00:13]} Kc7 {[%emt 0:16:31]} 47. Ke7 {[%emt 0:02:13]} Kb7 {[%emt 0:00:30]} 48. d8=Q {[%emt 0:00:07]} Kc6 {[%emt 0:00:11]} 49. Qd6+ {[%emt 0:00:10]} Kb7 {[%emt 0:00:15]} 50. Kd7 {[%emt 0:00:12]} Ka8 {[%emt 0:01:31]} 51. Kc6 {[%emt 0:00:14]} g4 {[%emt 0:00:58]} 52. Qd8+ {[%emt 0:00:07]} Ka7 {[%emt 0:00:19]} 53. Qb6+ {[%emt 0:00:06]} Ka8 {[%emt 0:00:25]} 54. Qb7# {[%emt 0:00:06]} 1-0

[Event "EYCC Girls-U12 2019"]
[Site "Bratislava"]
[Date "2019.08.05"]
[Round "4.20"]
[White "Smirnova, Jekaterina"]
[Black "Helliesen, Lykke-Merlot"]
[Result "0-1"]
[ECO "D10"]
[WhiteElo "1372"]
[BlackElo "1505"]
[Annotator "NA"]
[PlyCount "70"]
[EventDate "2019.08.02"]
[EventType "swiss"]
[EventCountry "SVK"]
[SourceTitle "playchess.com"]
[Source "ChessBase"]
[SourceQuality "1"]
[TimeControl "40/5400+30:1800+30"]

1. d4 {[%emt 0:00:00]} d5 {[%emt 0:00:00]} 2. c4 {[%emt 0:00:00]} c6 {[%emt 0:00:00]} 3. cxd5 {[%emt 0:00:00]} cxd5 {[%emt 0:00:00]} 4. Nc3 {[%emt 0:00:00]} Nf6 {[%emt 0:00:03]} 5. Nf3 {[%emt 0:00:00]} Nc6 {[%emt 0:00:09]} 6. e3 {[%emt 0:00:41]} Bf5 {[%emt 0:00:26]} 7. Bb5 {[%emt 0:00:41]} Rc8 {[%emt 0:02:19]} 8. Ne5 {[%emt 0:00:23]} e6 {[%emt 0:03:41]} 9. Qb3 {[%emt 0:04:20]} Bd6 {[%emt 0:05:31]} 10. Nd3 {[%emt 0:08:30]} O-O {[%emt 0:04:25]} 11. Bxc6 {[%emt 0:01:27]} Rxc6 {[%emt 0:01:06]} 12. Ne2 {[%emt 0:01:47]} Qc7 {[%emt 0:04:16]} 13. Ng3 {[%emt 0:03:26]} Bg6 {[%emt 0:00:55]} 14. O-O {[%emt 0:01:02]} Ne4 {[%emt 0:16:58]} 15. Qd1 {[%emt 0:04:41]} Rc8 {[%emt 0:01:58]} 16. Kh1 {[%emt 0:04:53]} Nxg3+ {[%emt 0:05:38]} 17. fxg3 {[%emt 0:00:14]} Bxd3 {[%emt 0:00:28]} 18. Qxd3 {[%emt 0:03:28]} Rxc1 {[%emt 0:00:41]} 19. e4 {[%emt 0:00:42]} Rxa1 {[%emt 0:00:46]} 20. Rxa1 {[%emt 0:00:23]} Qc1+ {[%emt 0:00:24]} 21. Qf1 {[%emt 0:00:07]} Qxf1+ {[%emt 0:00:09]} 22. Rxf1 {[%emt 0:00:07]} dxe4 {[%emt 0:00:07]} 23. Kg1 {[%emt 0:00:13]} Rc2 {[%emt 0:00:17]} 24. Re1 {[%emt 0:00:23]} f5 {[%emt 0:00:37]} 25. g4 {[%emt 0:00:11]} Rxb2 {[%emt 0:00:17]} 26. gxf5 {[%emt 0:00:06]} exf5 {[%emt 0:00:09]} 27. Rf1 {[%emt 0:00:10]} g6 {[%emt 0:00:10]} 28. Rc1 {[%emt 0:00:11]} Rxa2 {[%emt 0:00:41]} 29. Rc8+ {[%emt 0:00:06]} Kf7 {[%emt 0:00:46]} 30. Rd8 {[%emt 0:00:05]} Ke6 {[%emt 0:01:10]} 31. Rh8 {[%emt 0:00:15]} b5 {[%emt 0:00:21]} 32. Rxh7 {[%emt 0:00:11]} b4 {[%emt 0:00:30]} 33. Rb7 {[%emt 0:00:06]} Kd5 {[%emt 0:00:40]} 34. Rd7 {[%emt 0:00:25]} b3 {[%emt 0:00:09]} 35. Rb7 {[%emt 0:00:16]} b2 {[%emt 0:00:06]} 0-1